[Event "Late-Titled-Tuesday-Blitz-September-19-2023"]
[Site "Chess.com"]
[Date "2023.09.19"]
[Round "3"]
[White "Botvinnak"]
[Black "Rsnr"]
[Result "0-1"]
[WhiteElo "2331"]
[BlackElo "2850"]
[TimeControl "180+1"]
[EndTime "14:24:27 PDT"]
[Termination "Rsnr won by resignation"]

1. b3 {[%clk 0:02:53.2]} 1... a5 {[%clk 0:02:57.3]} 2. a4 {[%clk 0:02:52.4]}
2... d5 {[%clk 0:02:54.4]} 3. Bb2 {[%clk 0:02:51.6]} 3... Bf5 {[%clk 0:02:54.5]}
4. d3 {[%clk 0:02:51.2]} 4... e6 {[%clk 0:02:54.7]} 5. Nd2 {[%clk 0:02:51.1]}
5... Nf6 {[%clk 0:02:55.2]} 6. Ngf3 {[%clk 0:02:50.8]} 6... Be7 {[%clk
0:02:55.3]} 7. Nh4 {[%clk 0:02:48.9]} 7... Bg4 {[%clk 0:02:55.6]} 8. h3 {[%clk
0:02:48.4]} 8... Bh5 {[%clk 0:02:56.1]} 9. Nhf3 {[%clk 0:02:47.3]} 9... Nbd7
{[%clk 0:02:53.2]} 10. e4 {[%clk 0:02:47.4]} 10... c6 {[%clk 0:02:52.8]} 11. Be2
{[%clk 0:02:47.7]} 11... O-O {[%clk 0:02:52.7]} 12. O-O {[%clk 0:02:48]} 12...
Nc5 {[%clk 0:02:50.3]} 13. e5 {[%clk 0:02:45]} 13... Nfd7 {[%clk 0:02:50.3]} 14.
Re1 {[%clk 0:02:44.3]} 14... Bg6 {[%clk 0:02:44]} 15. Nf1 {[%clk 0:02:43.7]}
15... Na6 {[%clk 0:02:41.6]} 16. Ng3 {[%clk 0:02:43.1]} 16... b5 {[%clk
0:02:38.7]} 17. Nd4 {[%clk 0:02:40.3]} 17... Qb6 {[%clk 0:02:38]} 18. Bf3 {[%clk
0:02:36.7]} 18... Bc5 {[%clk 0:02:36.1]} 19. axb5 {[%clk 0:02:33.7]} 19... cxb5
{[%clk 0:02:35.9]} 20. c3 {[%clk 0:02:29.8]} 20... b4 {[%clk 0:02:36.5]} 21.
Nge2 {[%clk 0:02:04.2]} 21... Rfc8 {[%clk 0:02:32.8]} 22. Rf1 {[%clk 0:02:02.3]}
22... bxc3 {[%clk 0:02:32.2]} 23. Bxc3 {[%clk 0:02:01.9]} 23... Nb4 {[%clk
0:02:31.6]} 24. Bxb4 {[%clk 0:01:50.5]} 24... Bxb4 {[%clk 0:02:32.5]} 25. Nc2
{[%clk 0:01:44.1]} 25... Nxe5 {[%clk 0:02:30.3]} 26. Nf4 {[%clk 0:01:42.2]}
26... Bc3 {[%clk 0:02:29.8]} 27. Nxg6 {[%clk 0:01:40.6]} 27... hxg6 {[%clk
0:02:27.7]} 28. Ra2 {[%clk 0:01:38.5]} 28... Qxb3 {[%clk 0:02:26.4]} 29. Ra3
{[%clk 0:01:37.3]} 29... Qb5 {[%clk 0:02:16.7]} 30. Be2 {[%clk 0:01:36.3]} 30...
d4 {[%clk 0:02:16.8]} 31. Ra2 {[%clk 0:01:34.5]} 31... a4 {[%clk 0:02:16.1]} 32.
Ne1 {[%clk 0:01:33.7]} 32... a3 {[%clk 0:02:15.3]} 33. f4 {[%clk 0:01:34.1]}
33... Nd7 {[%clk 0:02:14.2]} 34. Bf3 {[%clk 0:01:34.8]} 34... Ra7 {[%clk
0:02:14.2]} 35. Be4 {[%clk 0:01:33.8]} 35... Bb2 {[%clk 0:02:13.9]} 36. Nf3
{[%clk 0:01:33.5]} 36... Rc1 {[%clk 0:02:14.1]} 37. Qe2 {[%clk 0:01:32.2]} 37...
Rac7 {[%clk 0:02:12.8]} 38. Kh2 {[%clk 0:01:31.7]} 38... Nf6 {[%clk 0:02:12.8]}
39. Ne5 {[%clk 0:01:30.9]} 39... Rxf1 {[%clk 0:02:10.9]} 40. Qxf1 {[%clk
0:01:27.4]} 40... Nxe4 {[%clk 0:02:11.2]} 41. Ng4 {[%clk 0:01:17.5]} 41... Qb3
{[%clk 0:02:00.2]} 42. Rxa3 {[%clk 0:01:13.7]} 42... Bxa3 {[%clk 0:01:57.4]} 43.
dxe4 {[%clk 0:01:14.2]} 43... d3 {[%clk 0:01:58]} 44. Ne5 {[%clk 0:01:14.4]}
44... d2 {[%clk 0:01:57.9]} 45. Qa6 {[%clk 0:01:11.1]} 45... d1=Q {[%clk
0:01:55.3]} 46. Qa8+ {[%clk 0:01:11.5]} 46... Bf8 {[%clk 0:01:55.8]} 0-1

[Event "Late-Titled-Tuesday-Blitz-September-19-2023"]
[Site "Chess.com"]
[Date "2023.09.19"]
[Round "3"]
[White "szachmistrz2500"]
[Black "IlanSchnaider"]
[Result "0-1"]
[WhiteElo "2500"]
[BlackElo "2751"]
[TimeControl "180+1"]
[EndTime "14:24:36 PDT"]
[Termination "IlanSchnaider won by resignation"]

1. Nf3 {[%clk 0:02:53.1]} 1... Nf6 {[%clk 0:03:00]} 2. g3 {[%clk 0:02:53]} 2...
g6 {[%clk 0:03:00.5]} 3. Bg2 {[%clk 0:02:53.2]} 3... Bg7 {[%clk 0:03:01.4]} 4.
O-O {[%clk 0:02:53.5]} 4... O-O {[%clk 0:03:02.3]} 5. d4 {[%clk 0:02:51.3]} 5...
d5 {[%clk 0:03:03.2]} 6. b3 {[%clk 0:02:51.1]} 6... Nc6 {[%clk 0:03:04]} 7. Bb2
{[%clk 0:02:51]} 7... a5 {[%clk 0:03:04.8]} 8. a4 {[%clk 0:02:50.5]} 8... Re8
{[%clk 0:03:05.4]} 9. Nbd2 {[%clk 0:02:49.3]} 9... Bf5 {[%clk 0:03:05.9]} 10. e3
{[%clk 0:02:44.1]} 10... Nb4 {[%clk 0:03:06.3]} 11. Rc1 {[%clk 0:02:41]} 11...
Ne4 {[%clk 0:03:04.5]} 12. Nxe4 {[%clk 0:02:39.9]} 12... Bxe4 {[%clk 0:03:05.4]}
13. Ba3 {[%clk 0:02:33.1]} 13... Na2 {[%clk 0:03:04.9]} 14. Ra1 {[%clk
0:02:30.6]} 14... Nb4 {[%clk 0:03:05.2]} 15. Rc1 {[%clk 0:02:25.1]} 15... c5
{[%clk 0:03:05.5]} 16. c3 {[%clk 0:01:57.9]} 16... Na6 {[%clk 0:03:05.8]} 17.
dxc5 {[%clk 0:01:47.6]} 17... Qc7 {[%clk 0:03:05.1]} 18. b4 {[%clk 0:01:47.2]}
18... b6 {[%clk 0:03:01.5]} 19. cxb6 {[%clk 0:01:43.9]} 19... Qxb6 {[%clk
0:03:02.4]} 20. b5 {[%clk 0:01:43.7]} 20... Nc5 {[%clk 0:03:01.8]} 21. Nd4
{[%clk 0:01:39.8]} 21... Nd3 {[%clk 0:02:58.9]} 22. Ra1 {[%clk 0:01:30.9]} 22...
Ne5 {[%clk 0:02:56.6]} 23. Bxe4 {[%clk 0:01:19.4]} 23... dxe4 {[%clk 0:02:57.5]}
24. Qb3 {[%clk 0:01:17.6]} 24... e6 {[%clk 0:02:57.1]} 25. c4 {[%clk 0:01:15.8]}
25... Bf8 {[%clk 0:02:54.6]} 26. Rfc1 {[%clk 0:01:03.3]} 26... Rac8 {[%clk
0:02:52.7]} 27. Rc3 {[%clk 0:00:58.4]} 27... Nd3 {[%clk 0:02:51.6]} 28. Nc6
{[%clk 0:00:56.7]} 28... Bg7 {[%clk 0:02:49.7]} 29. c5 {[%clk 0:00:54.7]} 29...
Qb7 {[%clk 0:02:46.6]} 30. Nd4 {[%clk 0:00:53.5]} 30... Red8 {[%clk 0:02:27.1]}
31. c6 {[%clk 0:00:45.9]} 31... Qb6 {[%clk 0:02:27.3]} 32. Rc4 {[%clk
0:00:32.8]} 32... Rxd4 {[%clk 0:02:17.9]} 33. exd4 {[%clk 0:00:28.9]} 33... Bxd4
{[%clk 0:02:18.8]} 34. Rxd4 {[%clk 0:00:25.3]} 34... Qxd4 {[%clk 0:02:19.7]} 35.
Rf1 {[%clk 0:00:25.1]} 35... e3 {[%clk 0:02:19.1]} 36. fxe3 {[%clk 0:00:18.8]}
36... Qxe3+ {[%clk 0:02:20]} 37. Kh1 {[%clk 0:00:18.2]} 37... Nf2+ {[%clk
0:02:19.3]} 0-1

[Event "Late-Titled-Tuesday-Blitz-September-19-2023"]
[Site "Chess.com"]
[Date "2023.09.19"]
[Round "3"]
[White "Chessdemon2019"]
[Black "Dewarfd"]
[Result "0-1"]
[WhiteElo "2373"]
[BlackElo "2209"]
[TimeControl "180+1"]
[EndTime "14:24:38 PDT"]
[Termination "Dewarfd won by resignation"]

1. e4 {[%clk 0:03:00.9]} 1... e5 {[%clk 0:03:00.3]} 2. Nf3 {[%clk 0:03:00.7]}
2... Nc6 {[%clk 0:03:00.3]} 3. Bc4 {[%clk 0:03:00]} 3... Nf6 {[%clk 0:03:00.7]}
4. Ng5 {[%clk 0:02:59.3]} 4... d5 {[%clk 0:03:00.3]} 5. exd5 {[%clk 0:02:59.3]}
5... Na5 {[%clk 0:03:00.3]} 6. Bb5+ {[%clk 0:02:57.5]} 6... c6 {[%clk
0:03:00.4]} 7. dxc6 {[%clk 0:02:58]} 7... bxc6 {[%clk 0:03:01.2]} 8. Bd3 {[%clk
0:02:57.7]} 8... Ng4 {[%clk 0:02:56.5]} 9. Nh3 {[%clk 0:02:52.9]} 9... Bc5
{[%clk 0:02:50.6]} 10. O-O {[%clk 0:02:49.8]} 10... O-O {[%clk 0:02:39.5]} 11.
a3 {[%clk 0:02:47.9]} 11... Bd6 {[%clk 0:01:55]} 12. b4 {[%clk 0:02:28.5]} 12...
Nb7 {[%clk 0:01:52.3]} 13. Bb2 {[%clk 0:02:24]} 13... Nxh2 {[%clk 0:01:45.5]}
14. Bxh7+ {[%clk 0:02:15.5]} 14... Kxh7 {[%clk 0:01:39.5]} 15. Qh5+ {[%clk
0:02:15.5]} 15... Kg8 {[%clk 0:01:40.1]} 16. Ng5 {[%clk 0:02:15.8]} 16... Bf5
{[%clk 0:01:21.6]} 17. Kxh2 {[%clk 0:02:15.6]} 17... Bg6 {[%clk 0:01:15.4]} 18.
Qh4 {[%clk 0:02:14.1]} 18... Be7 {[%clk 0:01:12.2]} 19. f4 {[%clk 0:02:04.9]}
19... exf4 {[%clk 0:01:11.9]} 20. Rf3 {[%clk 0:01:51]} 20... Bxg5 {[%clk
0:01:11.8]} 21. Qg4 {[%clk 0:01:50.9]} 21... f5 {[%clk 0:00:49.5]} 22. Qh3
{[%clk 0:01:50.1]} 22... Kf7 {[%clk 0:00:50.1]} 23. Rd3 {[%clk 0:01:47.9]} 23...
Qe7 {[%clk 0:00:37]} 24. Qf3 {[%clk 0:01:41.2]} 24... Rh8+ {[%clk 0:00:32.9]}
25. Kg1 {[%clk 0:01:41.5]} 25... Qe1+ {[%clk 0:00:33]} 26. Qf1 {[%clk
0:01:41.8]} 26... Rh1+ {[%clk 0:00:32.7]} 0-1

[Event "Late-Titled-Tuesday-Blitz-September-19-2023"]
[Site "Chess.com"]
[Date "2023.09.19"]
[Round "3"]
[White "DvaHrasta"]
[Black "MikaelyanArman"]
[Result "0-1"]
[WhiteElo "2503"]
[BlackElo "2868"]
[TimeControl "180+1"]
[EndTime "14:24:41 PDT"]
[Termination "MikaelyanArman won on time"]

1. c4 {[%clk 0:03:00.9]} 1... e5 {[%clk 0:02:56.1]} 2. g3 {[%clk 0:03:00.6]}
2... f5 {[%clk 0:02:55.4]} 3. Bg2 {[%clk 0:03:00]} 3... Nf6 {[%clk 0:02:56.1]}
4. Nh3 {[%clk 0:02:59]} 4... Bc5 {[%clk 0:02:56.1]} 5. O-O {[%clk 0:02:57.7]}
5... d6 {[%clk 0:02:56.1]} 6. Nc3 {[%clk 0:02:56]} 6... O-O {[%clk 0:02:56.6]}
7. d3 {[%clk 0:02:56.1]} 7... f4 {[%clk 0:02:57.3]} 8. gxf4 {[%clk 0:02:54.1]}
8... Ng4 {[%clk 0:02:49.2]} 9. e3 {[%clk 0:02:45.8]} 9... Qh4 {[%clk 0:02:41.7]}
10. Ne4 {[%clk 0:02:39.4]} 10... exf4 {[%clk 0:02:39.1]} 11. Nxc5 {[%clk
0:02:25.2]} 11... f3 {[%clk 0:02:35]} 12. Bxf3 {[%clk 0:02:23.2]} 12... Qxh3
{[%clk 0:02:34.7]} 13. Bxg4 {[%clk 0:02:17.5]} 13... Bxg4 {[%clk 0:02:35.6]} 14.
f3 {[%clk 0:02:17]} 14... Bxf3 {[%clk 0:02:23.2]} 15. Rxf3 {[%clk 0:02:09.8]}
15... Rxf3 {[%clk 0:02:24.1]} 16. Ne4 {[%clk 0:02:07]} 16... Nc6 {[%clk
0:02:17.5]} 17. Bd2 {[%clk 0:01:41.6]} 17... Raf8 {[%clk 0:02:12.8]} 18. Qe2
{[%clk 0:01:34.8]} 18... Ne5 {[%clk 0:02:09.5]} 19. d4 {[%clk 0:01:26.4]} 19...
Ng4 {[%clk 0:01:52.6]} 20. Ng3 {[%clk 0:01:06.9]} 20... Rf2 {[%clk 0:01:46.3]}
0-1

[Event "Late-Titled-Tuesday-Blitz-September-19-2023"]
[Site "Chess.com"]
[Date "2023.09.19"]
[Round "3"]
[White "Dr_crypt"]
[Black "krzyzan94"]
[Result "0-1"]
[WhiteElo "2440"]
[BlackElo "2791"]
[TimeControl "180+1"]
[EndTime "14:24:54 PDT"]
[Termination "krzyzan94 won by checkmate"]

1. d4 {[%clk 0:02:57.3]} 1... Nf6 {[%clk 0:02:59.6]} 2. Nf3 {[%clk 0:02:57.1]}
2... g6 {[%clk 0:02:59.5]} 3. c4 {[%clk 0:02:57.5]} 3... d6 {[%clk 0:02:57.5]}
4. Nc3 {[%clk 0:02:58.4]} 4... Bf5 {[%clk 0:02:57.6]} 5. g3 {[%clk 0:02:26.3]}
5... Bg7 {[%clk 0:02:51.3]} 6. Bg2 {[%clk 0:02:27]} 6... Ne4 {[%clk 0:02:51]} 7.
Qb3 {[%clk 0:02:25.5]} 7... Nxc3 {[%clk 0:02:48.4]} 8. Qxc3 {[%clk 0:02:22.4]}
8... O-O {[%clk 0:02:45.5]} 9. Nh4 {[%clk 0:02:20.6]} 9... Bc8 {[%clk
0:02:40.7]} 10. Qd3 {[%clk 0:02:01]} 10... c5 {[%clk 0:02:37.8]} 11. d5 {[%clk
0:02:00.9]} 11... b5 {[%clk 0:02:21.8]} 12. cxb5 {[%clk 0:01:53.1]} 12... a6
{[%clk 0:02:22.2]} 13. b6 {[%clk 0:01:39.9]} 13... Qxb6 {[%clk 0:02:13.7]} 14.
O-O {[%clk 0:01:39.7]} 14... a5 {[%clk 0:02:14.3]} 15. Rd1 {[%clk 0:01:32]}
15... a4 {[%clk 0:02:12.9]} 16. Rb1 {[%clk 0:01:29.8]} 16... Ba6 {[%clk
0:02:09.8]} 17. Qc2 {[%clk 0:01:29.9]} 17... Nd7 {[%clk 0:02:06.8]} 18. e4
{[%clk 0:01:29.4]} 18... Ne5 {[%clk 0:02:04.9]} 19. f4 {[%clk 0:01:24.8]} 19...
c4+ {[%clk 0:01:34.6]} 20. Kh1 {[%clk 0:01:19.1]} 20... Nd3 {[%clk 0:01:15.2]}
21. Rf1 {[%clk 0:01:18.3]} 21... Nb4 {[%clk 0:01:10.5]} 22. Qxa4 {[%clk
0:01:11.2]} 22... c3 {[%clk 0:01:01.8]} 23. bxc3 {[%clk 0:01:10.5]} 23... Bxf1
{[%clk 0:01:01.7]} 24. Qxb4 {[%clk 0:01:10.3]} 24... Bxg2+ {[%clk 0:00:59.1]}
25. Nxg2 {[%clk 0:01:09.3]} 25... Qf2 {[%clk 0:00:53.4]} 26. a4 {[%clk
0:01:02.2]} 26... Qf1# {[%clk 0:00:53.2]} 0-1

[Event "Late-Titled-Tuesday-Blitz-September-19-2023"]
[Site "Chess.com"]
[Date "2023.09.19"]
[Round "3"]
[White "KejJaj"]
[Black "Marticafierro"]
[Result "0-1"]
[WhiteElo "2205"]
[BlackElo "2409"]
[TimeControl "180+1"]
[EndTime "14:25:01 PDT"]
[Termination "Marticafierro won by resignation"]

1. d4 {[%clk 0:03:00.9]} 1... g6 {[%clk 0:03:00.9]} 2. e4 {[%clk 0:02:58.3]}
2... Bg7 {[%clk 0:03:01]} 3. Nc3 {[%clk 0:02:58.3]} 3... c6 {[%clk 0:03:00.6]}
4. Be3 {[%clk 0:02:55.1]} 4... d5 {[%clk 0:03:01]} 5. Nf3 {[%clk 0:02:40.8]}
5... dxe4 {[%clk 0:02:59.6]} 6. Nxe4 {[%clk 0:02:40.2]} 6... Nf6 {[%clk
0:03:00.1]} 7. Nxf6+ {[%clk 0:02:27.1]} 7... Bxf6 {[%clk 0:02:59.4]} 8. h4
{[%clk 0:02:25.3]} 8... h5 {[%clk 0:02:58.5]} 9. c3 {[%clk 0:02:17.8]} 9... O-O
{[%clk 0:02:57.8]} 10. Bd3 {[%clk 0:02:16.2]} 10... Bg4 {[%clk 0:02:56.9]} 11.
Qc2 {[%clk 0:02:09.1]} 11... Kg7 {[%clk 0:02:56.2]} 12. O-O-O {[%clk 0:01:54.3]}
12... Nd7 {[%clk 0:02:54.4]} 13. Rde1 {[%clk 0:01:49.3]} 13... Qa5 {[%clk
0:02:53.3]} 14. Kb1 {[%clk 0:01:47.5]} 14... e5 {[%clk 0:02:51.2]} 15. Bg5
{[%clk 0:01:36]} 15... Bxf3 {[%clk 0:02:44.6]} 16. Bxf6+ {[%clk 0:01:33.3]}
16... Nxf6 {[%clk 0:02:42.3]} 17. gxf3 {[%clk 0:01:20.2]} 17... exd4 {[%clk
0:02:41.8]} 18. cxd4 {[%clk 0:01:15.8]} 18... Rfe8 {[%clk 0:02:40.6]} 19. Rxe8
{[%clk 0:01:10.6]} 19... Rxe8 {[%clk 0:02:41.5]} 20. f4 {[%clk 0:01:10.6]} 20...
Re1+ {[%clk 0:02:40.2]} 21. Rxe1 {[%clk 0:01:09.1]} 21... Qxe1+ {[%clk
0:02:41.1]} 22. Qc1 {[%clk 0:01:09]} 22... Qxc1+ {[%clk 0:02:38.1]} 23. Kxc1
{[%clk 0:01:08.8]} 23... Nd5 {[%clk 0:02:38.6]} 24. f5 {[%clk 0:01:07.1]} 24...
Nf4 {[%clk 0:02:38.8]} 25. Bc4 {[%clk 0:00:47.5]} 25... Ng2 {[%clk 0:02:36.3]}
26. fxg6 {[%clk 0:00:43.6]} 26... fxg6 {[%clk 0:02:37.2]} 27. d5 {[%clk
0:00:41.7]} 27... Nxh4 {[%clk 0:02:37]} 28. dxc6 {[%clk 0:00:41.3]} 28... bxc6
{[%clk 0:02:36.9]} 29. a4 {[%clk 0:00:35.8]} 29... Kf6 {[%clk 0:02:36.8]} 30. b4
{[%clk 0:00:35.2]} 30... g5 {[%clk 0:02:34.8]} 31. a5 {[%clk 0:00:32.1]} 31...
Nf5 {[%clk 0:02:31.5]} 32. Bd3 {[%clk 0:00:30.4]} 32... g4 {[%clk 0:02:31]} 33.
Be4 {[%clk 0:00:30.4]} 33... Nd4 {[%clk 0:02:31.2]} 34. Kd2 {[%clk 0:00:28.8]}
34... Ke5 {[%clk 0:02:31.4]} 35. Kd3 {[%clk 0:00:27.9]} 35... h4 {[%clk
0:02:31.4]} 36. Bh1 {[%clk 0:00:25.9]} 36... g3 {[%clk 0:02:22.8]} 37. fxg3
{[%clk 0:00:25.4]} 37... hxg3 {[%clk 0:02:23.7]} 38. Kc4 {[%clk 0:00:22.2]}
38... Nf5 {[%clk 0:02:04.6]} 39. Bxc6 {[%clk 0:00:19.8]} 39... Ne3+ {[%clk
0:02:04.4]} 40. Kd3 {[%clk 0:00:19.4]} 40... Nd5 {[%clk 0:02:04.5]} 41. Bxd5
{[%clk 0:00:18]} 41... Kxd5 {[%clk 0:02:04.7]} 42. Ke3 {[%clk 0:00:18.6]} 42...
Kc4 {[%clk 0:02:05.1]} 43. Kf3 {[%clk 0:00:19.1]} 43... Kxb4 {[%clk 0:02:05.4]}
44. Kxg3 {[%clk 0:00:19.7]} 44... Kxa5 {[%clk 0:02:06]} 45. Kf2 {[%clk
0:00:20.1]} 45... Kb4 {[%clk 0:02:06.7]} 46. Ke1 {[%clk 0:00:20.5]} 46... Kb3
{[%clk 0:02:07.3]} 47. Kd1 {[%clk 0:00:20.9]} 47... Kb2 {[%clk 0:02:07.7]} 48.
Kd2 {[%clk 0:00:21]} 48... a5 {[%clk 0:02:08.4]} 0-1

[Event "Late-Titled-Tuesday-Blitz-September-19-2023"]
[Site "Chess.com"]
[Date "2023.09.19"]
[Round "3"]
[White "GadimbayliA"]
[Black "Andrej2004"]
[Result "1-0"]
[WhiteElo "2835"]
[BlackElo "2546"]
[TimeControl "180+1"]
[EndTime "14:25:03 PDT"]
[Termination "GadimbayliA won by resignation"]

1. e4 {[%clk 0:02:59.8]} 1... e5 {[%clk 0:02:59.6]} 2. Nf3 {[%clk 0:02:59.9]}
2... Nc6 {[%clk 0:02:59.6]} 3. Nc3 {[%clk 0:03:00.5]} 3... Nf6 {[%clk
0:02:59.3]} 4. d4 {[%clk 0:03:01.2]} 4... exd4 {[%clk 0:03:00.2]} 5. Nxd4 {[%clk
0:03:02.1]} 5... Bb4 {[%clk 0:02:59.8]} 6. Nxc6 {[%clk 0:03:02.4]} 6... bxc6
{[%clk 0:03:00.5]} 7. Bd3 {[%clk 0:03:03]} 7... d5 {[%clk 0:02:59.6]} 8. exd5
{[%clk 0:03:03.9]} 8... O-O {[%clk 0:02:59.8]} 9. O-O {[%clk 0:03:04.3]} 9...
cxd5 {[%clk 0:02:59.8]} 10. Bg5 {[%clk 0:03:04.3]} 10... c6 {[%clk 0:03:00.4]}
11. Qf3 {[%clk 0:03:04.2]} 11... Bd6 {[%clk 0:03:00.6]} 12. Rae1 {[%clk
0:03:04.1]} 12... Rb8 {[%clk 0:02:59.5]} 13. Nd1 {[%clk 0:03:04.4]} 13... h6
{[%clk 0:02:58.9]} 14. Bxf6 {[%clk 0:03:04.5]} 14... Qxf6 {[%clk 0:02:59.8]} 15.
Qxf6 {[%clk 0:03:05.1]} 15... gxf6 {[%clk 0:03:00.7]} 16. b3 {[%clk 0:03:06]}
16... Be6 {[%clk 0:02:57.6]} 17. Ne3 {[%clk 0:03:06.2]} 17... a5 {[%clk
0:02:55.3]} 18. Nf5 {[%clk 0:03:04.6]} 18... Bxf5 {[%clk 0:02:55.3]} 19. Bxf5
{[%clk 0:03:05.5]} 19... a4 {[%clk 0:02:54.8]} 20. Bd7 {[%clk 0:02:56.6]} 20...
axb3 {[%clk 0:02:54.5]} 21. axb3 {[%clk 0:02:52]} 21... c5 {[%clk 0:02:50.3]}
22. Bc6 {[%clk 0:02:52.2]} 22... d4 {[%clk 0:02:50.5]} 23. g3 {[%clk 0:02:50.9]}
23... Rbc8 {[%clk 0:02:47.9]} 24. Bb5 {[%clk 0:02:48.8]} 24... Rb8 {[%clk
0:02:44.6]} 25. Bc4 {[%clk 0:02:49]} 25... Rbe8 {[%clk 0:02:44.3]} 26. Rxe8
{[%clk 0:02:49.6]} 26... Rxe8 {[%clk 0:02:45.2]} 27. Ra1 {[%clk 0:02:50.5]}
27... Re7 {[%clk 0:02:29.9]} 28. Ra6 {[%clk 0:02:48.8]} 28... Rd7 {[%clk
0:02:24.8]} 29. Kg2 {[%clk 0:02:48.7]} 29... Kg7 {[%clk 0:02:24.6]} 30. Bb5
{[%clk 0:02:49]} 30... Rd8 {[%clk 0:02:20.3]} 31. Ra7 {[%clk 0:02:49.2]} 31...
Rc8 {[%clk 0:01:38.3]} 32. Rd7 {[%clk 0:02:38.1]} 32... Bb8 {[%clk 0:01:32.4]}
33. Bc4 {[%clk 0:02:37.9]} 33... Rc7 {[%clk 0:01:32.3]} 34. Rd8 {[%clk
0:02:38.2]} 34... Ba7 {[%clk 0:01:26.2]} 35. Re8 {[%clk 0:02:38.5]} 35... Rd7
{[%clk 0:01:23.7]} 36. f4 {[%clk 0:02:34.9]} 36... Bb6 {[%clk 0:01:20.5]} 37.
Kf3 {[%clk 0:02:34.3]} 37... Bd8 {[%clk 0:01:16.3]} 38. Kg4 {[%clk 0:02:34.5]}
38... Be7 {[%clk 0:01:14.3]} 39. Kf5 {[%clk 0:02:31.5]} 39... Ra7 {[%clk
0:01:14.3]} 40. Ke4 {[%clk 0:02:26.1]} 40... Bf8 {[%clk 0:01:08.1]} 41. Rc8
{[%clk 0:02:19.2]} 41... Re7+ {[%clk 0:01:05.3]} 42. Kf5 {[%clk 0:02:17.2]}
42... Ra7 {[%clk 0:00:58.9]} 43. h4 {[%clk 0:02:12.3]} 43... Rb7 {[%clk
0:00:57.2]} 44. h5 {[%clk 0:02:06.8]} 44... Ra7 {[%clk 0:00:57.2]} 45. Rc6
{[%clk 0:02:06.4]} 45... Be7 {[%clk 0:00:54.6]} 46. Ke4 {[%clk 0:02:06.5]} 46...
Rd7 {[%clk 0:00:53.9]} 47. Ra6 {[%clk 0:01:58.7]} 47... Bf8 {[%clk 0:00:52.7]}
48. Kf5 {[%clk 0:01:58.1]} 48... Re7 {[%clk 0:00:51.6]} 49. Rxf6 {[%clk
0:01:55.9]} 49... Re3 {[%clk 0:00:47.4]} 50. Rxf7+ {[%clk 0:01:55.6]} 1-0

[Event "Late-Titled-Tuesday-Blitz-September-19-2023"]
[Site "Chess.com"]
[Date "2023.09.19"]
[Round "3"]
[White "reevecanada"]
[Black "Korchmar_Vasiliy"]
[Result "1-0"]
[WhiteElo "2521"]
[BlackElo "2739"]
[TimeControl "180+1"]
[EndTime "14:25:07 PDT"]
[Termination "reevecanada won on time"]

1. e4 {[%clk 0:02:55.4]} 1... c5 {[%clk 0:02:59.9]} 2. Nf3 {[%clk 0:02:53.5]}
2... d6 {[%clk 0:03:00.3]} 3. Bb5+ {[%clk 0:02:52.8]} 3... Nd7 {[%clk
0:03:00.1]} 4. d4 {[%clk 0:02:51.7]} 4... cxd4 {[%clk 0:02:59.9]} 5. Nxd4 {[%clk
0:02:52.6]} 5... Nf6 {[%clk 0:02:59.1]} 6. O-O {[%clk 0:02:52.7]} 6... g6 {[%clk
0:02:57.4]} 7. Re1 {[%clk 0:02:51.1]} 7... Bg7 {[%clk 0:02:56.5]} 8. Bf1 {[%clk
0:02:51.1]} 8... O-O {[%clk 0:02:56]} 9. c4 {[%clk 0:02:51.7]} 9... Qb6 {[%clk
0:02:28]} 10. Nc3 {[%clk 0:02:49.4]} 10... Ng4 {[%clk 0:02:22.9]} 11. Qxg4
{[%clk 0:02:23.2]} 11... Bxd4 {[%clk 0:02:21.8]} 12. Qh4 {[%clk 0:02:20]} 12...
Nf6 {[%clk 0:02:09.1]} 13. Bh6 {[%clk 0:02:18.6]} 13... Re8 {[%clk 0:02:07.4]}
14. Rad1 {[%clk 0:02:14.8]} 14... Ng4 {[%clk 0:01:06.2]} 15. Rd2 {[%clk
0:02:04.2]} 15... Nxh6 {[%clk 0:01:02.8]} 16. Nd5 {[%clk 0:02:02.5]} 16... Qd8
{[%clk 0:00:12.7]} 17. Rxd4 {[%clk 0:02:01.8]} 17... Kg7 {[%clk 0:00:12.1]} 18.
Ne3 {[%clk 0:02:00.6]} 18... Be6 {[%clk 0:00:06.8]} 19. g4 {[%clk 0:01:59.3]}
19... Ng8 {[%clk 0:00:06.5]} 20. f4 {[%clk 0:01:56.7]} 20... Nf6 {[%clk
0:00:05.7]} 21. g5 {[%clk 0:01:56.1]} 21... Ng8 {[%clk 0:00:02.6]} 22. f5 {[%clk
0:01:55.8]} 22... Bd7 {[%clk 0:00:02.8]} 23. Bh3 {[%clk 0:01:52.9]} 23... Qb6
{[%clk 0:00:02.6]} 24. Red1 {[%clk 0:01:52]} 24... Red8 {[%clk 0:00:01.9]} 25.
Nd5 {[%clk 0:01:51.7]} 25... Qa5 {[%clk 0:00:02]} 26. Nxe7 {[%clk 0:01:51.3]}
26... Nxe7 {[%clk 0:00:01.9]} 27. f6+ {[%clk 0:01:51.6]} 27... Kg8 {[%clk
0:00:02.1]} 28. fxe7 {[%clk 0:01:51.5]} 28... Re8 {[%clk 0:00:02.1]} 29. Bxd7
{[%clk 0:01:51.2]} 29... Rxe7 {[%clk 0:00:02.6]} 30. Bb5 {[%clk 0:01:51.2]}
30... Qxa2 {[%clk 0:00:01.8]} 31. Qf2 {[%clk 0:01:50.6]} 31... Rf8 {[%clk
0:00:01.3]} 32. Rxd6 {[%clk 0:01:50.8]} 32... Qa5 {[%clk 0:00:01.5]} 33. Qf6
{[%clk 0:01:49]} 1-0

[Event "Late-Titled-Tuesday-Blitz-September-19-2023"]
[Site "Chess.com"]
[Date "2023.09.19"]
[Round "3"]
[White "Miguelitro69"]
[Black "Deeper44"]
[Result "0-1"]
[WhiteElo "2287"]
[BlackElo "2524"]
[TimeControl "180+1"]
[EndTime "14:25:07 PDT"]
[Termination "Deeper44 won by resignation"]

1. e4 {[%clk 0:02:58.5]} 1... e6 {[%clk 0:02:59.8]} 2. Qe2 {[%clk 0:02:57.6]}
2... c5 {[%clk 0:02:58.9]} 3. Nf3 {[%clk 0:02:57]} 3... Nc6 {[%clk 0:02:59.1]}
4. g3 {[%clk 0:02:57.3]} 4... Bd6 {[%clk 0:02:59.3]} 5. Bg2 {[%clk 0:02:57.4]}
5... Nge7 {[%clk 0:02:59.4]} 6. O-O {[%clk 0:02:57.5]} 6... Bc7 {[%clk
0:02:59.4]} 7. Rd1 {[%clk 0:02:56.3]} 7... d6 {[%clk 0:02:57.2]} 8. d4 {[%clk
0:02:55.8]} 8... cxd4 {[%clk 0:02:56.9]} 9. Nxd4 {[%clk 0:02:56]} 9... Nxd4
{[%clk 0:02:57]} 10. Rxd4 {[%clk 0:02:55.5]} 10... Nc6 {[%clk 0:02:56.5]} 11.
Rd2 {[%clk 0:02:42.5]} 11... O-O {[%clk 0:02:53]} 12. b3 {[%clk 0:02:42.5]}
12... Qf6 {[%clk 0:02:51.7]} 13. c3 {[%clk 0:02:31.3]} 13... e5 {[%clk
0:02:41.3]} 14. Bb2 {[%clk 0:02:30.5]} 14... a5 {[%clk 0:02:27.9]} 15. Na3
{[%clk 0:02:28.8]} 15... b6 {[%clk 0:02:22.8]} 16. Rad1 {[%clk 0:02:23.1]} 16...
Ba6 {[%clk 0:02:21.8]} 17. Nb5 {[%clk 0:02:18.1]} 17... Na7 {[%clk 0:01:29.7]}
18. a4 {[%clk 0:02:09.3]} 18... Nxb5 {[%clk 0:01:21.7]} 19. axb5 {[%clk
0:02:07.3]} 19... Bb7 {[%clk 0:01:21.9]} 20. Ba3 {[%clk 0:02:06.9]} 20... Rfd8
{[%clk 0:01:20.2]} 21. Rd3 {[%clk 0:01:43.6]} 21... Qe6 {[%clk 0:01:13.3]} 22.
c4 {[%clk 0:01:39.4]} 22... a4 {[%clk 0:01:13.3]} 23. bxa4 {[%clk 0:01:09.1]}
23... Rxa4 {[%clk 0:01:11.9]} 24. Bxd6 {[%clk 0:01:09.6]} 24... Rxd6 {[%clk
0:01:06.2]} 25. Rxd6 {[%clk 0:01:04.3]} 25... Bxd6 {[%clk 0:01:05.1]} 26. Qd3
{[%clk 0:00:56.4]} 26... Bf8 {[%clk 0:01:03.8]} 27. Qd8 {[%clk 0:00:50.3]} 27...
Rxc4 {[%clk 0:00:58.7]} 28. Qxb6 {[%clk 0:00:49.7]} 28... Qxb6 {[%clk
0:00:57.6]} 0-1